[Event "Early-Titled-Tuesday-Blitz-February-20-2024"]
[Site "Chess.com"]
[Date "2024.02.20"]
[Round "7"]
[White "angelgab3"]
[Black "SharapovEvgeny"]
[Result "1-0"]
[WhiteElo "2768"]
[BlackElo "2562"]
[TimeControl "180+1"]
[EndTime "9:18:25 PST"]
[Termination "angelgab3 won by resignation"]

1. e4 {[%clk 0:03:00.9]} 1... c5 {[%clk 0:02:59.8]} 2. Nf3 {[%clk 0:03:00.7]}
2... d6 {[%clk 0:03:00.3]} 3. d4 {[%clk 0:03:01]} 3... cxd4 {[%clk 0:03:00.7]}
4. Nxd4 {[%clk 0:03:01.9]} 4... Nf6 {[%clk 0:03:01]} 5. Nc3 {[%clk 0:03:02.7]}
5... Nc6 {[%clk 0:03:01.5]} 6. Bg5 {[%clk 0:03:03]} 6... e6 {[%clk 0:03:02.1]}
7. Qd3 {[%clk 0:03:03.7]} 7... Be7 {[%clk 0:03:02.7]} 8. O-O-O {[%clk 0:03:01]}
8... O-O {[%clk 0:03:02.7]} 9. h4 {[%clk 0:03:00.3]} 9... Nxd4 {[%clk
0:03:00.9]} 10. Qxd4 {[%clk 0:03:00.3]} 10... Qa5 {[%clk 0:03:01.6]} 11. Kb1
{[%clk 0:02:50.5]} 11... Rd8 {[%clk 0:03:01]} 12. Qd2 {[%clk 0:02:48.4]} 12...
Bd7 {[%clk 0:02:57]} 13. f3 {[%clk 0:02:13.2]} 13... Bc6 {[%clk 0:02:53.3]} 14.
Nd5 {[%clk 0:02:09]} 14... Qxd2 {[%clk 0:02:52.3]} 15. Nxe7+ {[%clk 0:02:09.1]}
15... Kf8 {[%clk 0:02:52.8]} 16. Bxd2 {[%clk 0:02:09.5]} 16... Kxe7 {[%clk
0:02:52.7]} 17. g4 {[%clk 0:02:06.6]} 17... Nd7 {[%clk 0:02:49.1]} 18. Bc3
{[%clk 0:02:02]} 18... e5 {[%clk 0:02:46.3]} 19. Bc4 {[%clk 0:01:59]} 19... a5
{[%clk 0:02:44.2]} 20. a3 {[%clk 0:01:52.9]} 20... a4 {[%clk 0:02:40]} 21. Bb4
{[%clk 0:01:49.3]} 21... Nc5 {[%clk 0:02:39.8]} 22. Rd2 {[%clk 0:01:48.5]} 22...
b6 {[%clk 0:02:38.4]} 23. Rhd1 {[%clk 0:01:46.4]} 23... f6 {[%clk 0:02:38.1]}
24. b3 {[%clk 0:01:38.7]} 24... b5 {[%clk 0:02:30.3]} 25. Bd5 {[%clk 0:01:34.1]}
25... Bxd5 {[%clk 0:02:28.5]} 26. Rxd5 {[%clk 0:01:35]} 26... axb3 {[%clk
0:02:26.3]} 27. cxb3 {[%clk 0:01:35]} 27... Nxb3 {[%clk 0:02:17.3]} 28. Rxd6
{[%clk 0:01:30.1]} 28... Rxd6 {[%clk 0:02:16.5]} 29. Rxd6 {[%clk 0:01:31]} 29...
Ke8 {[%clk 0:02:12.1]} 30. Rb6 {[%clk 0:01:17.7]} 30... Nd4 {[%clk 0:02:09.9]}
31. Rb7 {[%clk 0:01:17.9]} 31... Nxf3 {[%clk 0:01:52.5]} 32. Rxg7 {[%clk
0:01:14.9]} 32... Rc8 {[%clk 0:01:51.5]} 33. Rxh7 {[%clk 0:01:10.5]} 33... Rc4
{[%clk 0:01:51.2]} 34. h5 {[%clk 0:00:58.6]} 34... Rxe4 {[%clk 0:01:50.7]} 35.
h6 {[%clk 0:00:56.3]} 35... Ng5 {[%clk 0:01:37.2]} 36. Re7+ {[%clk 0:00:43.7]}
36... Kd8 {[%clk 0:01:35.4]} 37. Rg7 {[%clk 0:00:44.1]} 37... Kc8 {[%clk
0:01:09]} 38. Rxg5 {[%clk 0:00:36.6]} 38... fxg5 {[%clk 0:01:08.9]} 39. h7
{[%clk 0:00:36.7]} 1-0

[Event "Early-Titled-Tuesday-Blitz-February-20-2024"]
[Site "Chess.com"]
[Date "2024.02.20"]
[Round "7"]
[White "Rakhmanov_Aleksandr"]
[Black "Iskusnyh"]
[Result "1-0"]
[WhiteElo "2865"]
[BlackElo "2671"]
[TimeControl "180+1"]
[EndTime "9:18:26 PST"]
[Termination "Rakhmanov_Aleksandr won by resignation"]

1. c4 {[%clk 0:02:57.8]} 1... c5 {[%clk 0:02:57.6]} 2. Nf3 {[%clk 0:02:56.8]}
2... g6 {[%clk 0:02:54.8]} 3. h4 {[%clk 0:02:55]} 3... Nf6 {[%clk 0:02:52.8]} 4.
Nc3 {[%clk 0:02:54.7]} 4... Nc6 {[%clk 0:02:49.9]} 5. Nd5 {[%clk 0:02:40.8]}
5... Bg7 {[%clk 0:02:36.3]} 6. Nxf6+ {[%clk 0:02:40.4]} 6... Bxf6 {[%clk
0:02:36.1]} 7. h5 {[%clk 0:02:41.3]} 7... d5 {[%clk 0:02:35.3]} 8. cxd5 {[%clk
0:02:38.2]} 8... Qxd5 {[%clk 0:02:34.9]} 9. d3 {[%clk 0:02:30.6]} 9... Bg4
{[%clk 0:02:30.7]} 10. Qa4 {[%clk 0:02:29.2]} 10... Bxf3 {[%clk 0:02:25.7]} 11.
gxf3 {[%clk 0:02:26.6]} 11... Qd4 {[%clk 0:02:11.1]} 12. Qxd4 {[%clk 0:02:20.4]}
12... Nxd4 {[%clk 0:02:07.8]} 13. Kd1 {[%clk 0:02:18.3]} 13... O-O-O {[%clk
0:02:06.9]} 14. f4 {[%clk 0:02:15.5]} 14... Kb8 {[%clk 0:01:49.9]} 15. e3 {[%clk
0:02:08.4]} 15... Nc6 {[%clk 0:01:47.6]} 16. a3 {[%clk 0:02:02.3]} 16... e5
{[%clk 0:01:38.2]} 17. fxe5 {[%clk 0:01:58.6]} 17... Nxe5 {[%clk 0:01:37.9]} 18.
Kc2 {[%clk 0:01:52.5]} 18... Ng4 {[%clk 0:01:31.3]} 19. f3 {[%clk 0:01:46.7]}
19... Ne5 {[%clk 0:01:25.1]} 20. f4 {[%clk 0:01:38.1]} 20... Nc6 {[%clk
0:01:07.8]} 21. Bg2 {[%clk 0:01:30.6]} 21... Rc8 {[%clk 0:00:48.9]} 22. Bd2
{[%clk 0:01:25.8]} 22... Rhd8 {[%clk 0:00:43.4]} 23. hxg6 {[%clk 0:01:21.9]}
23... hxg6 {[%clk 0:00:44.3]} 24. Rh7 {[%clk 0:01:21.8]} 24... Rc7 {[%clk
0:00:43.8]} 25. Bxc6 {[%clk 0:00:59.2]} 25... bxc6 {[%clk 0:00:41.3]} 26. Ba5
{[%clk 0:00:58.8]} 1-0

[Event "Early-Titled-Tuesday-Blitz-February-20-2024"]
[Site "Chess.com"]
[Date "2024.02.20"]
[Round "7"]
[White "DonkyDonkyDonkey"]
[Black "ChessQueen"]
[Result "1/2-1/2"]
[WhiteElo "2915"]
[BlackElo "2745"]
[TimeControl "180+1"]
[EndTime "9:18:32 PST"]
[Termination "Game drawn by repetition"]

1. d4 {[%clk 0:03:00.9]} 1... f5 {[%clk 0:02:59.9]} 2. Nf3 {[%clk 0:02:56.4]}
2... Nf6 {[%clk 0:03:00.1]} 3. g3 {[%clk 0:02:57.2]} 3... g6 {[%clk 0:03:00.7]}
4. Bg2 {[%clk 0:02:58]} 4... Bg7 {[%clk 0:03:01.3]} 5. O-O {[%clk 0:02:58.8]}
5... O-O {[%clk 0:03:01.7]} 6. c4 {[%clk 0:02:59]} 6... d6 {[%clk 0:03:02.3]} 7.
b3 {[%clk 0:02:57.7]} 7... a5 {[%clk 0:03:02.1]} 8. Bb2 {[%clk 0:02:58]} 8... a4
{[%clk 0:03:00.7]} 9. Nbd2 {[%clk 0:02:55.9]} 9... a3 {[%clk 0:02:55.9]} 10. Bc3
{[%clk 0:02:56]} 10... c6 {[%clk 0:02:40.3]} 11. Qc2 {[%clk 0:02:53.6]} 11...
Nbd7 {[%clk 0:02:27.5]} 12. e4 {[%clk 0:02:41.5]} 12... fxe4 {[%clk 0:02:25.9]}
13. Ng5 {[%clk 0:02:41.7]} 13... Nb6 {[%clk 0:02:16]} 14. Ndxe4 {[%clk
0:02:34.3]} 14... Bf5 {[%clk 0:02:15.9]} 15. Qe2 {[%clk 0:02:34.4]} 15... Qd7
{[%clk 0:02:13.7]} 16. Nxf6+ {[%clk 0:02:09.8]} 16... exf6 {[%clk 0:02:12]} 17.
Nf3 {[%clk 0:02:09.7]} 17... Rfe8 {[%clk 0:01:59.8]} 18. Qd2 {[%clk 0:02:09.7]}
18... d5 {[%clk 0:01:55]} 19. Ba5 {[%clk 0:02:01.7]} 19... Nc8 {[%clk
0:01:51.4]} 20. cxd5 {[%clk 0:02:01.4]} 20... cxd5 {[%clk 0:01:51.4]} 21. Rac1
{[%clk 0:01:59.1]} 21... Nd6 {[%clk 0:01:49.7]} 22. Rc7 {[%clk 0:01:33.6]} 22...
Qb5 {[%clk 0:01:49]} 23. Qb4 {[%clk 0:01:18.7]} 23... Qxa5 {[%clk 0:01:37.7]}
24. Qxd6 {[%clk 0:01:18.7]} 24... Bf8 {[%clk 0:01:21.1]} 25. Qf4 {[%clk
0:01:16.2]} 25... Bh6 {[%clk 0:01:12.5]} 26. Qd6 {[%clk 0:00:57.1]} 26... Bf8
{[%clk 0:01:12.4]} 27. Qf4 {[%clk 0:00:40.6]} 27... Bh6 {[%clk 0:00:46.2]} 28.
Qd6 {[%clk 0:00:27.4]} 28... Bf8 {[%clk 0:00:36.8]} 1/2-1/2

[Event "Early-Titled-Tuesday-Blitz-February-20-2024"]
[Site "Chess.com"]
[Date "2024.02.20"]
[Round "7"]
[White "Rodalquilar"]
[Black "Schachmalanders"]
[Result "1-0"]
[WhiteElo "2758"]
[BlackElo "2477"]
[TimeControl "180+1"]
[EndTime "9:18:37 PST"]
[Termination "Rodalquilar won by resignation"]

1. d4 {[%clk 0:03:00.9]} 1... c5 {[%clk 0:02:59]} 2. c3 {[%clk 0:03:00.5]} 2...
cxd4 {[%clk 0:02:58.5]} 3. cxd4 {[%clk 0:03:01]} 3... d5 {[%clk 0:02:58.8]} 4.
Bf4 {[%clk 0:02:59.4]} 4... Nf6 {[%clk 0:02:57.2]} 5. Nc3 {[%clk 0:02:59.1]}
5... Nc6 {[%clk 0:02:57]} 6. e3 {[%clk 0:02:59.3]} 6... a6 {[%clk 0:02:57.1]} 7.
Rc1 {[%clk 0:02:49.5]} 7... Bf5 {[%clk 0:02:56.3]} 8. f3 {[%clk 0:02:47.5]} 8...
Nh5 {[%clk 0:02:50]} 9. g4 {[%clk 0:02:47.2]} 9... Nxf4 {[%clk 0:02:43.2]} 10.
gxf5 {[%clk 0:02:47.6]} 10... Nh5 {[%clk 0:02:42.6]} 11. Qb3 {[%clk 0:02:42.9]}
11... e6 {[%clk 0:02:29.6]} 12. Bd3 {[%clk 0:01:59]} 12... Qd7 {[%clk
0:02:10.3]} 13. Nge2 {[%clk 0:01:43.1]} 13... Be7 {[%clk 0:02:05.6]} 14. Na4
{[%clk 0:01:23.6]} 14... Bh4+ {[%clk 0:01:57.6]} 15. Kd2 {[%clk 0:01:21.9]}
15... Rd8 {[%clk 0:01:35.6]} 16. Nc5 {[%clk 0:01:16.3]} 16... Qe7 {[%clk
0:01:33.7]} 17. Qxb7 {[%clk 0:01:13.3]} 17... Qxb7 {[%clk 0:01:26.5]} 18. Nxb7
{[%clk 0:01:13.7]} 18... Nb4 {[%clk 0:01:27.2]} 19. Nxd8 {[%clk 0:01:10.6]}
19... Nxd3 {[%clk 0:01:27.1]} 20. Kxd3 {[%clk 0:00:55.6]} 20... Bxd8 {[%clk
0:01:22.1]} 21. fxe6 {[%clk 0:00:55.9]} 21... fxe6 {[%clk 0:01:22.4]} 22. Rc6
{[%clk 0:00:56.1]} 22... O-O {[%clk 0:01:22]} 23. f4 {[%clk 0:00:55]} 23... Kf7
{[%clk 0:01:17]} 24. Rxa6 {[%clk 0:00:54.3]} 24... Nf6 {[%clk 0:01:17.6]} 25.
Ra7+ {[%clk 0:00:51.2]} 25... Kg8 {[%clk 0:01:16.2]} 26. Rg1 {[%clk 0:00:50.5]}
26... g6 {[%clk 0:01:16.6]} 27. Nc3 {[%clk 0:00:47.3]} 27... Bb6 {[%clk
0:01:13]} 28. Ra6 {[%clk 0:00:46.3]} 28... Rb8 {[%clk 0:01:12]} 29. Na4 {[%clk
0:00:37.5]} 29... Bd8 {[%clk 0:01:08]} 30. Rxe6 {[%clk 0:00:37.3]} 30... Ne4
{[%clk 0:01:08.7]} 31. Rxe4 {[%clk 0:00:37.4]} 31... dxe4+ {[%clk 0:01:08.6]}
32. Kxe4 {[%clk 0:00:37.9]} 32... Bh4 {[%clk 0:01:05.3]} 33. Rg2 {[%clk
0:00:33.9]} 33... Kf7 {[%clk 0:01:04.9]} 34. Nc5 {[%clk 0:00:33.1]} 34... Be7
{[%clk 0:01:01.5]} 35. Rc2 {[%clk 0:00:31.3]} 35... Ra8 {[%clk 0:00:58.8]} 36.
a3 {[%clk 0:00:31.2]} 36... Re8 {[%clk 0:00:59.5]} 37. Kd3 {[%clk 0:00:31.3]}
37... g5 {[%clk 0:00:57.9]} 38. fxg5 {[%clk 0:00:29.9]} 38... Bxg5 {[%clk
0:00:58.8]} 39. e4 {[%clk 0:00:30.3]} 39... Bf4 {[%clk 0:00:58.7]} 40. Rf2
{[%clk 0:00:29.8]} 1-0

[Event "Early-Titled-Tuesday-Blitz-February-20-2024"]
[Site "Chess.com"]
[Date "2024.02.20"]
[Round "7"]
[White "lrestevez"]
[Black "treadstone_71"]
[Result "1-0"]
[WhiteElo "2201"]
[BlackElo "2315"]
[TimeControl "180+1"]
[EndTime "9:18:38 PST"]
[Termination "lrestevez won on time"]

1. e4 {[%clk 0:03:00.9]} 1... c5 {[%clk 0:02:59.3]} 2. Nf3 {[%clk 0:02:58.9]}
2... Nc6 {[%clk 0:02:59.4]} 3. d4 {[%clk 0:02:58.8]} 3... cxd4 {[%clk
0:03:00.3]} 4. Nxd4 {[%clk 0:02:57.2]} 4... Nf6 {[%clk 0:03:00.6]} 5. Nc3 {[%clk
0:02:56.8]} 5... d6 {[%clk 0:03:01.2]} 6. Bc4 {[%clk 0:02:55.9]} 6... e5 {[%clk
0:03:01.1]} 7. Nxc6 {[%clk 0:02:55.4]} 7... bxc6 {[%clk 0:03:01.1]} 8. O-O
{[%clk 0:02:52]} 8... Be7 {[%clk 0:02:57.4]} 9. Qe2 {[%clk 0:02:52.4]} 9... O-O
{[%clk 0:02:56.3]} 10. Bb3 {[%clk 0:02:52.7]} 10... Be6 {[%clk 0:02:53.4]} 11.
Rd1 {[%clk 0:02:51.2]} 11... Qc7 {[%clk 0:02:52.2]} 12. Bg5 {[%clk 0:02:50.8]}
12... Rad8 {[%clk 0:02:51]} 13. Bh4 {[%clk 0:02:45.9]} 13... Kh8 {[%clk
0:02:34.4]} 14. f3 {[%clk 0:02:40.8]} 14... Ng8 {[%clk 0:02:22.1]} 15. Bxe7
{[%clk 0:02:36.2]} 15... Nxe7 {[%clk 0:02:23]} 16. Rd2 {[%clk 0:02:35.8]} 16...
d5 {[%clk 0:02:11.6]} 17. exd5 {[%clk 0:02:32.8]} 17... cxd5 {[%clk 0:02:12.5]}
18. Rad1 {[%clk 0:02:32.1]} 18... d4 {[%clk 0:01:40.3]} 19. Bxe6 {[%clk
0:02:19.2]} 19... dxc3 {[%clk 0:01:40.1]} 20. Rxd8 {[%clk 0:02:18.5]} 20... Rxd8
{[%clk 0:01:40.3]} 21. Bb3 {[%clk 0:01:48.5]} 21... cxb2 {[%clk 0:01:31.6]} 22.
Rb1 {[%clk 0:01:44.4]} 22... Qc5+ {[%clk 0:01:27.4]} 23. Kf1 {[%clk 0:01:39.5]}
23... Nf5 {[%clk 0:01:06.3]} 24. Qe4 {[%clk 0:01:25.2]} 24... Ne3+ {[%clk
0:00:49.3]} 25. Ke2 {[%clk 0:01:24]} 25... Nd1 {[%clk 0:00:47.4]} 26. Rxd1
{[%clk 0:01:07.4]} 26... Qc8 {[%clk 0:00:07]} 27. c4 {[%clk 0:00:58.1]} 27...
Rxd1 {[%clk 0:00:05.2]} 28. Kxd1 {[%clk 0:00:57.7]} 28... Qd8+ {[%clk
0:00:02.3]} 29. Kc2 {[%clk 0:00:55]} 1-0

[Event "Early-Titled-Tuesday-Blitz-February-20-2024"]
[Site "Chess.com"]
[Date "2024.02.20"]
[Round "7"]
[White "Carlitus2004"]
[Black "Predo63"]
[Result "1-0"]
[WhiteElo "2395"]
[BlackElo "2530"]
[TimeControl "180+1"]
[EndTime "9:18:43 PST"]
[Termination "Carlitus2004 won by resignation"]

1. Nf3 {[%clk 0:03:00.9]} 1... d5 {[%clk 0:02:59.5]} 2. g3 {[%clk 0:03:00.6]}
2... c6 {[%clk 0:02:59.9]} 3. Bg2 {[%clk 0:03:00.5]} 3... Nf6 {[%clk 0:03:00.8]}
4. O-O {[%clk 0:03:00.9]} 4... Bf5 {[%clk 0:03:01.1]} 5. b3 {[%clk 0:02:58.2]}
5... e6 {[%clk 0:03:01.6]} 6. Bb2 {[%clk 0:02:58.7]} 6... h6 {[%clk 0:03:02.2]}
7. d3 {[%clk 0:02:59]} 7... Be7 {[%clk 0:03:02.7]} 8. Nbd2 {[%clk 0:02:59.2]}
8... O-O {[%clk 0:03:03]} 9. Qe1 {[%clk 0:02:59.7]} 9... Nbd7 {[%clk 0:03:02.6]}
10. e4 {[%clk 0:02:59.8]} 10... dxe4 {[%clk 0:03:02.9]} 11. dxe4 {[%clk
0:03:00.7]} 11... Bh7 {[%clk 0:03:03.3]} 12. Ne5 {[%clk 0:03:00.7]} 12... Nxe5
{[%clk 0:03:02.9]} 13. Bxe5 {[%clk 0:03:01.4]} 13... Qa5 {[%clk 0:02:59.8]} 14.
Nc4 {[%clk 0:02:58.7]} 14... Qxe1 {[%clk 0:02:55.7]} 15. Rfxe1 {[%clk
0:02:58.9]} 15... Nd7 {[%clk 0:02:50.5]} 16. Bd6 {[%clk 0:02:58.2]} 16... Rfe8
{[%clk 0:02:46.9]} 17. Bxe7 {[%clk 0:02:48.4]} 17... Rxe7 {[%clk 0:02:47]} 18.
Rad1 {[%clk 0:02:48.8]} 18... Nb6 {[%clk 0:02:45.5]} 19. Nd6 {[%clk 0:02:47]}
19... e5 {[%clk 0:02:45.3]} 20. c4 {[%clk 0:02:37.4]} 20... Rd8 {[%clk
0:02:38.3]} 21. c5 {[%clk 0:02:35.6]} 21... Nc8 {[%clk 0:02:38.1]} 22. Nxb7
{[%clk 0:02:31.7]} 22... Rxd1 {[%clk 0:02:20.7]} 23. Rxd1 {[%clk 0:02:32.6]}
23... Kf8 {[%clk 0:02:18.5]} 24. Bh3 {[%clk 0:01:52.3]} 24... Rxb7 {[%clk
0:02:14.6]} 25. Rd8+ {[%clk 0:01:50.6]} 25... Ke7 {[%clk 0:02:14]} 26. Rxc8
{[%clk 0:01:11.9]} 26... Bxe4 {[%clk 0:02:12.8]} 27. Bg2 {[%clk 0:01:09]} 27...
Bxg2 {[%clk 0:02:12.2]} 28. Kxg2 {[%clk 0:01:09.9]} 28... Kd7 {[%clk 0:02:12.6]}
29. Rf8 {[%clk 0:01:07.6]} 29... Ke6 {[%clk 0:02:12.5]} 30. Rd8 {[%clk 0:01:05]}
30... Rc7 {[%clk 0:02:05.7]} 31. Rd6+ {[%clk 0:01:04.7]} 31... Ke7 {[%clk
0:02:05.5]} 32. Kf3 {[%clk 0:01:02.1]} 32... f6 {[%clk 0:01:57]} 33. Ke4 {[%clk
0:01:01.7]} 33... g6 {[%clk 0:01:57.3]} 34. g4 {[%clk 0:01:01.6]} 34... Kf7
{[%clk 0:01:56.4]} 35. h4 {[%clk 0:01:00.1]} 35... a5 {[%clk 0:01:50.7]} 36. h5
{[%clk 0:01:00.2]} 36... Kg7 {[%clk 0:01:48.1]} 37. f3 {[%clk 0:00:43.6]} 37...
Kf7 {[%clk 0:01:47.4]} 38. Ke3 {[%clk 0:00:31.1]} 38... Kg7 {[%clk 0:01:42.8]}
39. Rd8 {[%clk 0:00:29.6]} 39... a4 {[%clk 0:01:42.2]} 40. b4 {[%clk 0:00:26]}
40... a3 {[%clk 0:01:41.9]} 41. Rb8 {[%clk 0:00:23.9]} 41... gxh5 {[%clk
0:01:39.2]} 42. gxh5 {[%clk 0:00:24.8]} 42... f5 {[%clk 0:01:39.6]} 43. Rb6
{[%clk 0:00:24.7]} 43... Kf6 {[%clk 0:01:38.8]} 44. b5 {[%clk 0:00:25]} 44...
Kg5 {[%clk 0:01:38.1]} 45. Rxc6 {[%clk 0:00:25.3]} 45... Rd7 {[%clk 0:01:36.7]}
46. b6 {[%clk 0:00:25.2]} 46... f4+ {[%clk 0:01:36.2]} 47. Ke4 {[%clk
0:00:23.5]} 47... Rd4+ {[%clk 0:01:36.1]} 48. Kxe5 {[%clk 0:00:23.8]} 48... Rb4
{[%clk 0:01:35.9]} 49. Rc7 {[%clk 0:00:20.6]} 49... Rb2 {[%clk 0:01:35.8]} 50.
b7 {[%clk 0:00:20.1]} 50... Kxh5 {[%clk 0:01:35.5]} 51. c6 {[%clk 0:00:19.2]}
51... Kh4 {[%clk 0:01:35.4]} 52. Rc8 {[%clk 0:00:19.5]} 52... Kg3 {[%clk
0:01:35.6]} 53. b8=Q {[%clk 0:00:19.4]} 53... Rxb8 {[%clk 0:01:34.3]} 54. Rxb8
{[%clk 0:00:20.3]} 1-0

[Event "Early-Titled-Tuesday-Blitz-February-20-2024"]
[Site "Chess.com"]
[Date "2024.02.20"]
[Round "7"]
[White "Zohid6"]
[Black "yaguigor"]
[Result "1-0"]
[WhiteElo "2870"]
[BlackElo "2674"]
[TimeControl "180+1"]
[EndTime "9:18:49 PST"]
[Termination "Zohid6 won by resignation"]

1. e4 {[%clk 0:03:00.9]} 1... c5 {[%clk 0:02:58.8]} 2. Nf3 {[%clk 0:03:00.8]}
2... Nc6 {[%clk 0:02:58]} 3. Bb5 {[%clk 0:03:00.5]} 3... Nf6 {[%clk 0:02:57.3]}
4. Bxc6 {[%clk 0:02:56]} 4... dxc6 {[%clk 0:02:56.7]} 5. d3 {[%clk 0:02:56.2]}
5... Qc7 {[%clk 0:02:54.1]} 6. h3 {[%clk 0:02:56.2]} 6... e5 {[%clk 0:02:52.9]}
7. O-O {[%clk 0:02:56.3]} 7... Bd6 {[%clk 0:02:51.4]} 8. Be3 {[%clk 0:02:55.9]}
8... Nd7 {[%clk 0:02:49.6]} 9. Nbd2 {[%clk 0:02:55.4]} 9... Nf8 {[%clk 0:02:47]}
10. Nc4 {[%clk 0:02:49.3]} 10... Ne6 {[%clk 0:02:47.6]} 11. Nfd2 {[%clk
0:02:47.1]} 11... O-O {[%clk 0:02:44.9]} 12. Qh5 {[%clk 0:02:45.3]} 12... f6
{[%clk 0:02:43.5]} 13. a4 {[%clk 0:02:42.6]} 13... b6 {[%clk 0:02:37.6]} 14. g3
{[%clk 0:02:26]} 14... Ba6 {[%clk 0:02:30.6]} 15. Nxd6 {[%clk 0:02:20.1]} 15...
Qxd6 {[%clk 0:02:29.9]} 16. f4 {[%clk 0:02:18.8]} 16... exf4 {[%clk 0:01:56.6]}
17. gxf4 {[%clk 0:02:18.4]} 17... g6 {[%clk 0:01:56.1]} 18. Qh4 {[%clk
0:02:00.5]} 18... f5 {[%clk 0:01:55.2]} 19. Rae1 {[%clk 0:01:52]} 19... Rae8
{[%clk 0:01:53.7]} 20. e5 {[%clk 0:01:28.4]} 20... Qd5 {[%clk 0:01:49.5]} 21. b3
{[%clk 0:01:16.4]} 21... Nd4 {[%clk 0:01:34.8]} 22. Bxd4 {[%clk 0:01:15.1]}
22... cxd4 {[%clk 0:01:33.9]} 23. Kh2 {[%clk 0:01:12.6]} 23... c5 {[%clk
0:01:31.2]} 24. Rg1 {[%clk 0:01:12.2]} 24... Re6 {[%clk 0:01:28.7]} 25. Rg3
{[%clk 0:01:10.6]} 25... Qd8 {[%clk 0:01:25.8]} 26. Qh6 {[%clk 0:01:07.3]} 26...
Qe7 {[%clk 0:01:23]} 27. Nf3 {[%clk 0:01:02.6]} 27... Qg7 {[%clk 0:01:20.7]} 28.
Qh4 {[%clk 0:01:01.8]} 28... Qe7 {[%clk 0:01:18.5]} 29. Ng5 {[%clk 0:01:00.8]}
29... Bb7 {[%clk 0:01:13.2]} 30. Reg1 {[%clk 0:00:59.8]} 30... a5 {[%clk
0:01:04.6]} 31. Qh6 {[%clk 0:00:55.9]} 31... Rc6 {[%clk 0:01:02.8]} 32. Nxh7
{[%clk 0:00:53.9]} 1-0

[Event "Early-Titled-Tuesday-Blitz-February-20-2024"]
[Site "Chess.com"]
[Date "2024.02.20"]
[Round "7"]
[White "abeljusto"]
[Black "Rawnsdale"]
[Result "0-1"]
[WhiteElo "2093"]
[BlackElo "2532"]
[TimeControl "180+1"]
[EndTime "9:18:49 PST"]
[Termination "Rawnsdale won on time"]

1. d4 {[%clk 0:03:00.9]} 1... d5 {[%clk 0:02:59.2]} 2. Bf4 {[%clk 0:03:00]} 2...
e6 {[%clk 0:02:59.4]} 3. e3 {[%clk 0:02:59.4]} 3... Bd6 {[%clk 0:02:59.9]} 4.
Bg3 {[%clk 0:02:58.2]} 4... Nf6 {[%clk 0:02:59.5]} 5. Nd2 {[%clk 0:02:55.9]}
5... O-O {[%clk 0:02:56.9]} 6. Ngf3 {[%clk 0:02:56.4]} 6... c5 {[%clk
0:02:57.2]} 7. c3 {[%clk 0:02:52]} 7... Nc6 {[%clk 0:02:57.2]} 8. Bd3 {[%clk
0:02:50.2]} 8... b6 {[%clk 0:02:54.8]} 9. e4 {[%clk 0:02:27.1]} 9... dxe4 {[%clk
0:02:34.1]} 10. Nxe4 {[%clk 0:02:26.5]} 10... Nxe4 {[%clk 0:02:29.5]} 11. Bxe4
{[%clk 0:02:26]} 11... Bb7 {[%clk 0:02:28.8]} 12. Bxd6 {[%clk 0:01:57.2]} 12...
Qxd6 {[%clk 0:02:12.3]} 13. Bxh7+ {[%clk 0:01:56.9]} 13... Kxh7 {[%clk
0:02:12.5]} 14. Ng5+ {[%clk 0:01:56.8]} 14... Kg6 {[%clk 0:02:13.1]} 15. h4
{[%clk 0:01:29.4]} 15... Qf4 {[%clk 0:01:26.1]} 16. Kf1 {[%clk 0:00:25.7]} 16...
cxd4 {[%clk 0:01:12.6]} 17. Qd3+ {[%clk 0:00:17.6]} 17... f5 {[%clk 0:01:06.8]}
18. Nxe6 {[%clk 0:00:14.1]} 18... Qe4 {[%clk 0:00:41.9]} 19. Nxf8+ {[%clk
0:00:10.2]} 19... Rxf8 {[%clk 0:00:40.8]} 20. Qg3+ {[%clk 0:00:09.6]} 20... Kf7
{[%clk 0:00:37.8]} 21. Qg5 {[%clk 0:00:05.9]} 21... Ne5 {[%clk 0:00:32.6]} 22.
Re1 {[%clk 0:00:04.5]} 22... Ba6+ {[%clk 0:00:31.2]} 0-1

[Event "Early-Titled-Tuesday-Blitz-February-20-2024"]
[Site "Chess.com"]
[Date "2024.02.20"]
[Round "7"]
[White "SirGerhard"]
[Black "tetrix83"]
[Result "1-0"]
[WhiteElo "2740"]
[BlackElo "2512"]
[TimeControl "180+1"]
[EndTime "9:18:52 PST"]
[Termination "SirGerhard won by resignation"]

1. e4 {[%clk 0:02:59.1]} 1... c5 {[%clk 0:02:59.9]} 2. Nc3 {[%clk 0:02:59]} 2...
Nc6 {[%clk 0:02:59.5]} 3. Bb5 {[%clk 0:02:58.9]} 3... Nd4 {[%clk 0:02:58.9]} 4.
Bc4 {[%clk 0:02:59]} 4... d6 {[%clk 0:02:51.2]} 5. Nf3 {[%clk 0:02:56.7]} 5...
Nf6 {[%clk 0:02:38.9]} 6. h3 {[%clk 0:02:49.4]} 6... Nxf3+ {[%clk 0:02:36.8]} 7.
Qxf3 {[%clk 0:02:48.9]} 7... e6 {[%clk 0:02:37.2]} 8. d3 {[%clk 0:02:48.5]} 8...
Be7 {[%clk 0:02:37.2]} 9. O-O {[%clk 0:02:48.5]} 9... O-O {[%clk 0:02:37.2]} 10.
a4 {[%clk 0:02:48.6]} 10... Bd7 {[%clk 0:02:30.3]} 11. Bb3 {[%clk 0:02:46.3]}
11... Bc6 {[%clk 0:02:30.3]} 12. Qg3 {[%clk 0:02:43.4]} 12... Kh8 {[%clk
0:02:29]} 13. f4 {[%clk 0:02:41.5]} 13... d5 {[%clk 0:02:27.2]} 14. e5 {[%clk
0:02:31.5]} 14... Nh5 {[%clk 0:02:09.3]} 15. Qg4 {[%clk 0:02:19.5]} 15... g6
{[%clk 0:02:07.8]} 16. Ne2 {[%clk 0:02:19.7]} 16... f5 {[%clk 0:02:01.8]} 17.
exf6 {[%clk 0:02:17.1]} 17... Rxf6 {[%clk 0:01:58.6]} 18. Bd2 {[%clk 0:02:02.9]}
18... Qd6 {[%clk 0:01:30.8]} 19. Bc3 {[%clk 0:01:55.2]} 19... d4 {[%clk
0:01:30.7]} 20. Bd2 {[%clk 0:01:54.6]} 20... Raf8 {[%clk 0:01:31.2]} 21. Ng3
{[%clk 0:01:49.3]} 21... Nxg3 {[%clk 0:01:27.5]} 22. Qxg3 {[%clk 0:01:46.6]}
22... Bd5 {[%clk 0:01:21.6]} 23. Bxd5 {[%clk 0:01:43.4]} 23... Qxd5 {[%clk
0:01:22.5]} 24. Rae1 {[%clk 0:01:41.6]} 24... Bd6 {[%clk 0:01:22.6]} 25. b3
{[%clk 0:01:28.6]} 25... Kg7 {[%clk 0:01:02.3]} 26. c4 {[%clk 0:01:21.4]} 26...
Qf5 {[%clk 0:00:52.4]} 27. Qf3 {[%clk 0:01:21.6]} 27... R6f7 {[%clk 0:00:36.3]}
28. g4 {[%clk 0:01:10.7]} 28... Qf6 {[%clk 0:00:36.2]} 29. Qe4 {[%clk
0:01:06.6]} 29... Re7 {[%clk 0:00:30]} 30. Kg2 {[%clk 0:01:01.4]} 30... Qh4
{[%clk 0:00:20.2]} 31. Re2 {[%clk 0:00:58.9]} 31... h5 {[%clk 0:00:17.7]} 32. g5
{[%clk 0:00:51.2]} 32... Rf5 {[%clk 0:00:17.2]} 33. Be1 {[%clk 0:00:48]} 33...
Rxf4 {[%clk 0:00:16.8]} 34. Bxh4 {[%clk 0:00:45.8]} 1-0